[Event "Early-Titled-Tuesday-Blitz-October-03-2023"]
[Site "Chess.com"]
[Date "2023.10.03"]
[Round "4"]
[White "MMAHDI2013"]
[Black "crazy_but_lazy"]
[Result "1-0"]
[WhiteElo "2401"]
[BlackElo "2597"]
[TimeControl "180+1"]
[EndTime "8:40:22 PDT"]
[Termination "MMAHDI2013 won by resignation"]

1. c4 {[%clk 0:02:59.5]} 1... e5 {[%clk 0:02:55.6]} 2. Nc3 {[%clk 0:02:59.4]}
2... Nf6 {[%clk 0:02:55.7]} 3. Nf3 {[%clk 0:02:58.6]} 3... Nc6 {[%clk
0:02:55.4]} 4. g3 {[%clk 0:02:55.2]} 4... Nd4 {[%clk 0:02:50]} 5. Bg2 {[%clk
0:02:52.5]} 5... Nxf3+ {[%clk 0:02:48.6]} 6. Bxf3 {[%clk 0:02:52.2]} 6... c6
{[%clk 0:02:38.2]} 7. d4 {[%clk 0:02:44.6]} 7... exd4 {[%clk 0:02:36.6]} 8. Qxd4
{[%clk 0:02:45.5]} 8... Bb4 {[%clk 0:02:35.9]} 9. O-O {[%clk 0:02:39.1]} 9... h6
{[%clk 0:02:23]} 10. a3 {[%clk 0:02:36.3]} 10... Bxc3 {[%clk 0:01:59.5]} 11.
Qxc3 {[%clk 0:02:29.6]} 11... O-O {[%clk 0:01:57.9]} 12. b4 {[%clk 0:02:27.5]}
12... d6 {[%clk 0:01:50.9]} 13. Bb2 {[%clk 0:02:26]} 13... Qe7 {[%clk
0:01:49.8]} 14. Rad1 {[%clk 0:02:23.4]} 14... Rd8 {[%clk 0:01:49.4]} 15. Rfe1
{[%clk 0:02:20.3]} 15... Be6 {[%clk 0:01:48.3]} 16. e4 {[%clk 0:02:18.5]} 16...
Ne8 {[%clk 0:01:37.9]} 17. Bg2 {[%clk 0:01:55.1]} 17... a5 {[%clk 0:01:33.7]}
18. c5 {[%clk 0:01:38]} 18... axb4 {[%clk 0:01:29.1]} 19. axb4 {[%clk
0:01:37.5]} 19... dxc5 {[%clk 0:01:28.9]} 20. bxc5 {[%clk 0:01:38.4]} 20... Rxd1
{[%clk 0:01:28.2]} 21. Rxd1 {[%clk 0:01:37.6]} 21... Rd8 {[%clk 0:01:25.1]} 22.
Rd4 {[%clk 0:01:24.2]} 22... Rxd4 {[%clk 0:01:17]} 23. Qxd4 {[%clk 0:01:23.2]}
23... Qd7 {[%clk 0:01:13.2]} 24. f4 {[%clk 0:01:20]} 24... Qxd4+ {[%clk
0:01:11.7]} 25. Bxd4 {[%clk 0:01:20.9]} 25... f6 {[%clk 0:01:09.4]} 26. Kf2
{[%clk 0:01:14.7]} 26... Kf7 {[%clk 0:01:09.4]} 27. Ke3 {[%clk 0:01:14.5]} 27...
Nc7 {[%clk 0:01:08.3]} 28. Bf1 {[%clk 0:01:13.8]} 28... Ke7 {[%clk 0:01:05.2]}
29. Bc3 {[%clk 0:01:04.6]} 29... Bb3 {[%clk 0:01:04]} 30. Ba5 {[%clk 0:00:59.6]}
30... Ne6 {[%clk 0:01:01.2]} 31. Bb4 {[%clk 0:00:55.9]} 31... Ba2 {[%clk
0:01:00.1]} 32. Bh3 {[%clk 0:00:51.2]} 32... Nd8 {[%clk 0:00:56.4]} 33. Ba5
{[%clk 0:00:46.8]} 33... Ne6 {[%clk 0:00:53.7]} 34. Bb6 {[%clk 0:00:44.2]} 34...
Bc4 {[%clk 0:00:42.5]} 35. Bf5 {[%clk 0:00:43.5]} 35... Ba2 {[%clk 0:00:33.4]}
36. h4 {[%clk 0:00:42.9]} 36... Bb3 {[%clk 0:00:32.8]} 37. g4 {[%clk 0:00:40.5]}
37... g5 {[%clk 0:00:31]} 38. fxg5 {[%clk 0:00:22.5]} 38... fxg5 {[%clk
0:00:30.9]} 39. h5 {[%clk 0:00:22.2]} 39... Kf6 {[%clk 0:00:25.6]} 40. Ba7
{[%clk 0:00:16.5]} 40... Bd1 {[%clk 0:00:25.7]} 41. Bxe6 {[%clk 0:00:11.3]}
41... Kxe6 {[%clk 0:00:25.4]} 42. Bb8 {[%clk 0:00:08.7]} 42... Bxg4 {[%clk
0:00:25.7]} 43. Bd6 {[%clk 0:00:09.3]} 43... Kf7 {[%clk 0:00:24]} 44. e5 {[%clk
0:00:07]} 44... Bxh5 {[%clk 0:00:22.9]} 45. e6+ {[%clk 0:00:07.5]} 45... Kg7
{[%clk 0:00:22.3]} 46. Kd4 {[%clk 0:00:06.3]} 46... Be8 {[%clk 0:00:19.2]} 47.
Ke5 {[%clk 0:00:06.8]} 47... Kg6 {[%clk 0:00:18.1]} 48. Bc7 {[%clk 0:00:06.9]}
48... h5 {[%clk 0:00:17]} 49. Kd6 {[%clk 0:00:04.8]} 49... h4 {[%clk 0:00:16.5]}
50. Ke7 {[%clk 0:00:05.3]} 50... g4 {[%clk 0:00:14.9]} 51. Kxe8 {[%clk
0:00:05.6]} 51... g3 {[%clk 0:00:15.5]} 52. e7 {[%clk 0:00:06.1]} 52... g2
{[%clk 0:00:15.8]} 53. Bh2 {[%clk 0:00:05.6]} 1-0

[Event "Early-Titled-Tuesday-Blitz-October-03-2023"]
[Site "Chess.com"]
[Date "2023.10.03"]
[Round "4"]
[White "MightyGMpretender"]
[Black "LeoLV10"]
[Result "1-0"]
[WhiteElo "2810"]
[BlackElo "2574"]
[TimeControl "180+1"]
[EndTime "8:40:23 PDT"]
[Termination "MightyGMpretender won by resignation"]

1. e4 {[%clk 0:03:00.9]} 1... c6 {[%clk 0:02:59.9]} 2. Nc3 {[%clk 0:02:59.3]}
2... d5 {[%clk 0:03:00.8]} 3. Nf3 {[%clk 0:02:59.9]} 3... Bg4 {[%clk 0:03:00.2]}
4. h3 {[%clk 0:02:57.9]} 4... Bxf3 {[%clk 0:03:00.7]} 5. Qxf3 {[%clk 0:02:58]}
5... e6 {[%clk 0:03:01.6]} 6. g3 {[%clk 0:02:54.9]} 6... Nd7 {[%clk 0:03:00.7]}
7. Bg2 {[%clk 0:02:55.1]} 7... Bc5 {[%clk 0:03:00.6]} 8. O-O {[%clk 0:02:53.9]}
8... Ne7 {[%clk 0:03:00.2]} 9. Rd1 {[%clk 0:02:49.5]} 9... d4 {[%clk 0:02:51.4]}
10. Ne2 {[%clk 0:02:49.1]} 10... e5 {[%clk 0:02:51.4]} 11. d3 {[%clk 0:02:48.2]}
11... O-O {[%clk 0:02:50.7]} 12. g4 {[%clk 0:02:48.2]} 12... Ng6 {[%clk
0:02:48.9]} 13. Qg3 {[%clk 0:02:46.9]} 13... Be7 {[%clk 0:02:48.2]} 14. Rf1
{[%clk 0:02:43.8]} 14... Bh4 {[%clk 0:02:47.8]} 15. Qh2 {[%clk 0:02:44.4]} 15...
Qe7 {[%clk 0:02:27.6]} 16. Ng3 {[%clk 0:02:40.8]} 16... Bxg3 {[%clk 0:02:22.9]}
17. fxg3 {[%clk 0:02:40.9]} 17... f6 {[%clk 0:02:22]} 18. h4 {[%clk 0:02:40.7]}
18... Rf7 {[%clk 0:02:17.6]} 19. Bh3 {[%clk 0:02:37.6]} 19... Nc5 {[%clk
0:02:15.8]} 20. Bd2 {[%clk 0:02:37.5]} 20... a5 {[%clk 0:02:15]} 21. Rf3 {[%clk
0:02:35.3]} 21... Nf8 {[%clk 0:02:15]} 22. Raf1 {[%clk 0:02:35.1]} 22... Nfd7
{[%clk 0:02:08.6]} 23. Qf2 {[%clk 0:02:30.7]} 23... Raf8 {[%clk 0:02:08.5]} 24.
Bxa5 {[%clk 0:02:30.1]} 24... Ra8 {[%clk 0:02:01.5]} 25. Bb4 {[%clk 0:02:29.8]}
25... Rxa2 {[%clk 0:01:57]} 26. Ba3 {[%clk 0:02:29.8]} 26... b5 {[%clk
0:01:57.2]} 27. Qe1 {[%clk 0:02:20.6]} 27... Qe6 {[%clk 0:01:51]} 28. Kh2 {[%clk
0:02:12.6]} 28... Qe8 {[%clk 0:01:42.9]} 29. Qb1 {[%clk 0:02:11.1]} 29... Rxa3
{[%clk 0:01:36.2]} 30. bxa3 {[%clk 0:02:12]} 30... Ne6 {[%clk 0:01:36.8]} 31. g5
{[%clk 0:02:11]} 31... Nef8 {[%clk 0:01:32]} 32. Qb4 {[%clk 0:02:05.8]} 32...
Re7 {[%clk 0:01:24.3]} 33. Qd6 {[%clk 0:02:05.4]} 33... c5 {[%clk 0:01:20.3]}
34. Rb1 {[%clk 0:01:57.8]} 34... Ne6 {[%clk 0:01:12.9]} 35. gxf6 {[%clk
0:01:45]} 35... Nxf6 {[%clk 0:01:11.1]} 36. Qxe5 {[%clk 0:01:41.2]} 36... Nf8
{[%clk 0:01:05.5]} 37. Qxc5 {[%clk 0:01:38.8]} 37... Ng6 {[%clk 0:00:56.8]} 38.
Qxb5 {[%clk 0:01:29.3]} 38... Qf8 {[%clk 0:00:50]} 39. Rf5 {[%clk 0:01:19.4]}
39... Rc7 {[%clk 0:00:29.9]} 40. Qb3+ {[%clk 0:01:05.5]} 40... Kh8 {[%clk
0:00:26.6]} 41. e5 {[%clk 0:01:03.4]} 41... Ne7 {[%clk 0:00:25.6]} 42. Rf2
{[%clk 0:01:00.2]} 42... Ng4+ {[%clk 0:00:25.1]} 43. Bxg4 {[%clk 0:00:55]} 43...
Qxf2+ {[%clk 0:00:25]} 44. Kh3 {[%clk 0:00:54.4]} 44... Rxc2 {[%clk 0:00:25.1]}
45. Qxc2 {[%clk 0:00:36.7]} 45... Qxc2 {[%clk 0:00:22.8]} 46. Rb8+ {[%clk
0:00:37.2]} 46... Ng8 {[%clk 0:00:23.3]} 47. Be6 {[%clk 0:00:37.8]} 47... h5
{[%clk 0:00:16]} 48. Rxg8+ {[%clk 0:00:36.8]} 48... Kh7 {[%clk 0:00:16]} 49. Rf8
{[%clk 0:00:37.4]} 49... Qd1 {[%clk 0:00:10.9]} 50. Bf5+ {[%clk 0:00:36]} 50...
g6 {[%clk 0:00:09.5]} 51. Be4 {[%clk 0:00:36.4]} 51... Kg7 {[%clk 0:00:09]} 52.
Rf6 {[%clk 0:00:34.9]} 52... Qg4+ {[%clk 0:00:03.8]} 53. Kg2 {[%clk 0:00:32.1]}
53... Qe2+ {[%clk 0:00:04.4]} 54. Rf2 {[%clk 0:00:32.8]} 54... Qe3 {[%clk
0:00:04.8]} 55. e6 {[%clk 0:00:30.1]} 55... Qc1 {[%clk 0:00:04.8]} 56. Rf7+
{[%clk 0:00:26.5]} 56... Kg8 {[%clk 0:00:04.8]} 57. Bxg6 {[%clk 0:00:24.7]}
57... Qd2+ {[%clk 0:00:05.1]} 58. Rf2 {[%clk 0:00:24.6]} 58... Qe3 {[%clk
0:00:04.6]} 59. Be4 {[%clk 0:00:25.2]} 59... Qh6 {[%clk 0:00:03.6]} 60. e7
{[%clk 0:00:24.8]} 60... Qe6 {[%clk 0:00:04.2]} 61. Rf8+ {[%clk 0:00:24.6]}
61... Kg7 {[%clk 0:00:04.4]} 62. e8=Q {[%clk 0:00:24]} 62... Qxe8 {[%clk
0:00:05.3]} 1-0

[Event "Early-Titled-Tuesday-Blitz-October-03-2023"]
[Site "Chess.com"]
[Date "2023.10.03"]
[Round "4"]
[White "JAN2404"]
[Black "parintele_chess"]
[Result "1-0"]
[WhiteElo "2073"]
[BlackElo "2241"]
[TimeControl "180+1"]
[EndTime "8:40:23 PDT"]
[Termination "JAN2404 won by resignation"]

1. e4 {[%clk 0:03:00.9]} 1... c5 {[%clk 0:01:12.5]} 2. Nf3 {[%clk 0:02:57.2]}
2... Nf6 {[%clk 0:01:12.9]} 3. Nc3 {[%clk 0:02:55]} 3... d5 {[%clk 0:01:12]} 4.
exd5 {[%clk 0:02:52.8]} 4... Nxd5 {[%clk 0:01:12.9]} 5. Bb5+ {[%clk 0:02:49.4]}
5... Bd7 {[%clk 0:01:12.8]} 6. Bxd7+ {[%clk 0:02:28.1]} 6... Qxd7 {[%clk
0:01:12.2]} 7. O-O {[%clk 0:02:26.1]} 7... Nc6 {[%clk 0:01:10.9]} 8. d3 {[%clk
0:02:17.2]} 8... e6 {[%clk 0:01:09.7]} 9. Re1 {[%clk 0:02:10.4]} 9... Be7 {[%clk
0:01:08.6]} 10. Bd2 {[%clk 0:01:47.9]} 10... O-O {[%clk 0:01:07.5]} 11. h3
{[%clk 0:01:47.4]} 11... Rad8 {[%clk 0:01:05.3]} 12. Qe2 {[%clk 0:01:29.3]}
12... h6 {[%clk 0:01:00.9]} 13. a4 {[%clk 0:01:27.8]} 13... Ndb4 {[%clk
0:00:56.8]} 14. Be3 {[%clk 0:01:12.3]} 14... Nd4 {[%clk 0:00:55.2]} 15. Bxd4
{[%clk 0:01:11.8]} 15... cxd4 {[%clk 0:00:56.1]} 16. Ne4 {[%clk 0:01:11.3]}
16... Rc8 {[%clk 0:00:51.4]} 17. Rec1 {[%clk 0:01:03.6]} 17... Qd5 {[%clk
0:00:43.4]} 18. Nfd2 {[%clk 0:00:42.2]} 18... Rxc2 {[%clk 0:00:39.5]} 19. Rxc2
{[%clk 0:00:41.6]} 19... Nxc2 {[%clk 0:00:40.4]} 20. Rc1 {[%clk 0:00:39.6]}
20... Nb4 {[%clk 0:00:39.3]} 21. Rc4 {[%clk 0:00:36]} 21... a6 {[%clk
0:00:26.9]} 22. Nb3 {[%clk 0:00:35]} 22... b5 {[%clk 0:00:26.2]} 23. axb5 {[%clk
0:00:32.2]} 23... axb5 {[%clk 0:00:27.1]} 24. Rxb4 {[%clk 0:00:27.1]} 24... Bxb4
{[%clk 0:00:28]} 25. Nbd2 {[%clk 0:00:26.1]} 25... Rc8 {[%clk 0:00:24.7]} 26.
Qg4 {[%clk 0:00:25.3]} 26... f5 {[%clk 0:00:19.5]} 27. Nf6+ {[%clk 0:00:24.9]}
27... Kf7 {[%clk 0:00:19.3]} 28. Nxd5 {[%clk 0:00:24.4]} 28... fxg4 {[%clk
0:00:19.2]} 29. Nxb4 {[%clk 0:00:25]} 29... gxh3 {[%clk 0:00:16.1]} 30. gxh3
{[%clk 0:00:24.9]} 30... Rc1+ {[%clk 0:00:15.4]} 31. Kg2 {[%clk 0:00:25.3]}
31... Rb1 {[%clk 0:00:15]} 32. b3 {[%clk 0:00:08.7]} 32... Rb2 {[%clk
0:00:14.1]} 33. Ne4 {[%clk 0:00:09.2]} 33... Rxb3 {[%clk 0:00:12.7]} 34. Nc6
{[%clk 0:00:06.9]} 34... b4 {[%clk 0:00:11.1]} 35. Nc5 {[%clk 0:00:06]} 35...
Rb1 {[%clk 0:00:10.7]} 36. Nxd4 {[%clk 0:00:06.3]} 36... Rc1 {[%clk 0:00:10.1]}
37. Ndxe6 {[%clk 0:00:04.6]} 37... b3 {[%clk 0:00:08.6]} 38. Nxb3 {[%clk
0:00:02.9]} 38... Rc3 {[%clk 0:00:08.9]} 39. Nbc5 {[%clk 0:00:02.6]} 39... Rc2
{[%clk 0:00:07.9]} 40. d4 {[%clk 0:00:03.5]} 40... Rd2 {[%clk 0:00:07.5]} 41.
Kf3 {[%clk 0:00:04.4]} 41... Kf6 {[%clk 0:00:06.3]} 42. Ke4 {[%clk 0:00:05]}
42... Rxf2 {[%clk 0:00:06.2]} 43. d5 {[%clk 0:00:05.6]} 43... Rh2 {[%clk
0:00:06]} 44. d6 {[%clk 0:00:05.7]} 44... Rxh3 {[%clk 0:00:05.9]} 45. d7 {[%clk
0:00:05.5]} 45... Rh4+ {[%clk 0:00:06]} 46. Kd5 {[%clk 0:00:06]} 46... Rh5+
{[%clk 0:00:04.1]} 47. Kc6 {[%clk 0:00:06.9]} 47... Rxc5+ {[%clk 0:00:04.1]} 48.
Kxc5 {[%clk 0:00:07]} 48... Ke7 {[%clk 0:00:04.1]} 49. d8=Q+ {[%clk 0:00:07.9]}
49... Kxe6 {[%clk 0:00:04.8]} 50. Qh4 {[%clk 0:00:07.6]} 50... Kf5 {[%clk
0:00:05.7]} 51. Kd4 {[%clk 0:00:07.7]} 1-0

[Event "Early-Titled-Tuesday-Blitz-October-03-2023"]
[Site "Chess.com"]
[Date "2023.10.03"]
[Round "4"]
[White "Defenstrator"]
[Black "ozates"]
[Result "0-1"]
[WhiteElo "2442"]
[BlackElo "2631"]
[TimeControl "180+1"]
[EndTime "8:40:24 PDT"]
[Termination "ozates won by checkmate"]

1. d4 {[%clk 0:03:00.1]} 1... Nf6 {[%clk 0:02:59.3]} 2. Bg5 {[%clk 0:02:59.5]}
2... Ne4 {[%clk 0:02:57.5]} 3. Bc1 {[%clk 0:02:51.8]} 3... c5 {[%clk 0:02:55]}
4. f3 {[%clk 0:02:33.6]} 4... Nf6 {[%clk 0:02:53.6]} 5. d5 {[%clk 0:02:31.3]}
5... e6 {[%clk 0:02:39.9]} 6. c4 {[%clk 0:02:27.9]} 6... b5 {[%clk 0:02:22.6]}
7. e4 {[%clk 0:02:21.2]} 7... bxc4 {[%clk 0:02:20.6]} 8. Nc3 {[%clk 0:02:13.3]}
8... d6 {[%clk 0:02:13.2]} 9. Bxc4 {[%clk 0:02:06.4]} 9... Be7 {[%clk
0:02:11.5]} 10. Nh3 {[%clk 0:01:39.6]} 10... O-O {[%clk 0:02:11.2]} 11. dxe6
{[%clk 0:01:29.8]} 11... Bxe6 {[%clk 0:02:09.5]} 12. Bxe6 {[%clk 0:01:18.3]}
12... fxe6 {[%clk 0:02:09.9]} 13. Qb3 {[%clk 0:01:11.3]} 13... Qd7 {[%clk
0:02:09.1]} 14. Nf4 {[%clk 0:01:03.3]} 14... Kf7 {[%clk 0:02:08.4]} 15. g4
{[%clk 0:00:53.8]} 15... Nc6 {[%clk 0:02:07.1]} 16. g5 {[%clk 0:00:53]} 16...
Nd4 {[%clk 0:02:05.8]} 17. Qd1 {[%clk 0:00:50.4]} 17... Ne8 {[%clk 0:01:58]} 18.
Be3 {[%clk 0:00:50.8]} 18... Kg8 {[%clk 0:01:57.8]} 19. h4 {[%clk 0:00:36.4]}
19... Nc7 {[%clk 0:01:18.2]} 20. Bxd4 {[%clk 0:00:35.8]} 20... cxd4 {[%clk
0:01:18]} 21. Nce2 {[%clk 0:00:36.3]} 21... e5 {[%clk 0:01:02.3]} 22. Qb3+
{[%clk 0:00:31.3]} 22... Kh8 {[%clk 0:01:02.5]} 23. Ng6+ {[%clk 0:00:25.6]}
23... hxg6 {[%clk 0:01:01.2]} 24. h5 {[%clk 0:00:26.5]} 24... Qe6 {[%clk
0:00:52.7]} 25. hxg6+ {[%clk 0:00:22.3]} 25... Kg8 {[%clk 0:00:52.6]} 26. Qc2
{[%clk 0:00:10.7]} 26... Rac8 {[%clk 0:00:37]} 27. Nxd4 {[%clk 0:00:04.7]} 27...
Qxg6 {[%clk 0:00:31.5]} 28. Nf5 {[%clk 0:00:05.6]} 28... Bxg5 {[%clk 0:00:29.5]}
29. Qh2 {[%clk 0:00:04.2]} 29... Bh6 {[%clk 0:00:18.5]} 30. Ne7+ {[%clk
0:00:05]} 30... Kh7 {[%clk 0:00:18.9]} 31. Nxg6 {[%clk 0:00:05.8]} 31... Kxg6
{[%clk 0:00:19.8]} 32. Qh5+ {[%clk 0:00:06.6]} 32... Kh7 {[%clk 0:00:20.3]} 33.
Rg1 {[%clk 0:00:06]} 33... Rf6 {[%clk 0:00:17]} 34. Rd1 {[%clk 0:00:06.7]} 34...
Nb5 {[%clk 0:00:16.6]} 35. Qg4 {[%clk 0:00:04.1]} 35... Rc2 {[%clk 0:00:15.6]}
36. Qd7 {[%clk 0:00:04.3]} 36... Nd4 {[%clk 0:00:15.3]} 37. Rxd4 {[%clk
0:00:02.9]} 37... exd4 {[%clk 0:00:16.2]} 38. Rg2 {[%clk 0:00:02.4]} 38... Rxg2
{[%clk 0:00:15.8]} 39. e5 {[%clk 0:00:02.8]} 39... Rxf3 {[%clk 0:00:12.6]} 40.
e6 {[%clk 0:00:02.5]} 40... d3 {[%clk 0:00:09.4]} 41. e7 {[%clk 0:00:01.6]}
41... d2+ {[%clk 0:00:09.9]} 42. Kd1 {[%clk 0:00:02.5]} 42... Rf1+ {[%clk
0:00:10.8]} 43. Kc2 {[%clk 0:00:03.4]} 43... d1=Q+ {[%clk 0:00:11.7]} 44. Kc3
{[%clk 0:00:04.3]} 44... Rc2+ {[%clk 0:00:10.5]} 45. Kb3 {[%clk 0:00:05.2]}
45... Rf3+ {[%clk 0:00:10.6]} 46. Kb4 {[%clk 0:00:06]} 46... Qd4+ {[%clk
0:00:10.7]} 47. Kb5 {[%clk 0:00:06.9]} 47... Qb6+ {[%clk 0:00:10.9]} 48. Ka4
{[%clk 0:00:07.6]} 48... Rc4+ {[%clk 0:00:10.8]} 49. b4 {[%clk 0:00:07.6]} 49...
Rxb4# {[%clk 0:00:11.2]} 0-1

[Event "Early-Titled-Tuesday-Blitz-October-03-2023"]
[Site "Chess.com"]
[Date "2023.10.03"]
[Round "4"]
[White "Galileo22"]
[Black "Gentlejimmy7"]
[Result "1-0"]
[WhiteElo "2672"]
[BlackElo "2506"]
[TimeControl "180+1"]
[EndTime "8:40:28 PDT"]
[Termination "Galileo22 won by checkmate"]

1. Nf3 {[%clk 0:03:00.9]} 1... f5 {[%clk 0:02:57.1]} 2. b3 {[%clk 0:03:01.5]}
2... Nf6 {[%clk 0:02:55.2]} 3. Bb2 {[%clk 0:03:02.4]} 3... g6 {[%clk 0:02:55.8]}
4. g3 {[%clk 0:03:02.4]} 4... Bg7 {[%clk 0:02:55.8]} 5. Bg2 {[%clk 0:03:02.9]}
5... O-O {[%clk 0:02:56.5]} 6. O-O {[%clk 0:03:03.2]} 6... d6 {[%clk 0:02:56.4]}
7. d4 {[%clk 0:03:03.7]} 7... c6 {[%clk 0:02:56.3]} 8. c4 {[%clk 0:02:58.1]}
8... a5 {[%clk 0:02:41.2]} 9. Nc3 {[%clk 0:02:56.2]} 9... Nbd7 {[%clk
0:02:29.5]} 10. Qc2 {[%clk 0:02:40.4]} 10... e5 {[%clk 0:02:28.4]} 11. Ba3
{[%clk 0:02:20.9]} 11... Qc7 {[%clk 0:02:19.6]} 12. dxe5 {[%clk 0:02:18.7]}
12... dxe5 {[%clk 0:02:17.3]} 13. Bxf8 {[%clk 0:02:17.6]} 13... Nxf8 {[%clk
0:02:18]} 14. Rad1 {[%clk 0:02:13.6]} 14... Ne6 {[%clk 0:02:06.8]} 15. e3 {[%clk
0:02:01.8]} 15... Bd7 {[%clk 0:02:03]} 16. Qd2 {[%clk 0:01:57]} 16... Bf8 {[%clk
0:01:50.9]} 17. Qb2 {[%clk 0:01:49]} 17... Bg7 {[%clk 0:01:40.7]} 18. a3 {[%clk
0:01:44.7]} 18... Be8 {[%clk 0:01:38.1]} 19. b4 {[%clk 0:01:43.6]} 19... a4
{[%clk 0:01:23.4]} 20. c5 {[%clk 0:01:42.1]} 20... Bf7 {[%clk 0:01:22.1]} 21.
Rd2 {[%clk 0:01:26.5]} 21... h6 {[%clk 0:01:21.1]} 22. Rfd1 {[%clk 0:01:25.7]}
22... g5 {[%clk 0:01:21.6]} 23. Rd6 {[%clk 0:01:22.1]} 23... e4 {[%clk
0:01:09.1]} 24. Ne5 {[%clk 0:01:19.8]} 24... Nd8 {[%clk 0:00:43.9]} 25. Nxf7
{[%clk 0:01:09.8]} 25... Nxf7 {[%clk 0:00:44.8]} 26. Qa2 {[%clk 0:01:00.3]}
26... Kf8 {[%clk 0:00:45]} 27. R6d2 {[%clk 0:00:56.7]} 27... Ne5 {[%clk
0:00:42.8]} 28. Qe6 {[%clk 0:00:53]} 28... Re8 {[%clk 0:00:15.8]} 29. Qxf5
{[%clk 0:00:53.1]} 29... Kg8 {[%clk 0:00:16.7]} 30. Nxe4 {[%clk 0:00:52.2]}
30... Nd5 {[%clk 0:00:15.7]} 31. Nd6 {[%clk 0:00:50.9]} 31... Rf8 {[%clk
0:00:15]} 32. Qe6+ {[%clk 0:00:50.1]} 32... Kh8 {[%clk 0:00:14.9]} 33. Rxd5
{[%clk 0:00:38]} 33... cxd5 {[%clk 0:00:15.8]} 34. Bxd5 {[%clk 0:00:37.8]} 34...
b6 {[%clk 0:00:12.8]} 35. f4 {[%clk 0:00:35.8]} 35... gxf4 {[%clk 0:00:11.9]}
36. gxf4 {[%clk 0:00:34.2]} 36... bxc5 {[%clk 0:00:12.2]} 37. fxe5 {[%clk
0:00:32.6]} 37... cxb4 {[%clk 0:00:12.9]} 38. Nf7+ {[%clk 0:00:27.4]} 38... Rxf7
{[%clk 0:00:13]} 39. Qxf7 {[%clk 0:00:26.9]} 39... Qxf7 {[%clk 0:00:13.9]} 40.
Bxf7 {[%clk 0:00:27]} 40... bxa3 {[%clk 0:00:14.8]} 41. Ba2 {[%clk 0:00:19.5]}
41... Bxe5 {[%clk 0:00:14]} 42. h3 {[%clk 0:00:20.1]} 42... Kg7 {[%clk
0:00:14.1]} 43. e4 {[%clk 0:00:20.7]} 43... Kf6 {[%clk 0:00:14.4]} 44. Kg2
{[%clk 0:00:20.4]} 44... Bb2 {[%clk 0:00:13.3]} 45. Rd5 {[%clk 0:00:20.6]} 45...
Ke6 {[%clk 0:00:13]} 46. Ra5+ {[%clk 0:00:19.4]} 46... Kf6 {[%clk 0:00:12.3]}
47. Rxa4 {[%clk 0:00:18.7]} 47... h5 {[%clk 0:00:13.2]} 48. Kf3 {[%clk
0:00:18.6]} 48... h4 {[%clk 0:00:13.1]} 49. Ra5 {[%clk 0:00:18.6]} 49... Bc3
{[%clk 0:00:12.8]} 50. Rh5 {[%clk 0:00:17.9]} 50... Bb2 {[%clk 0:00:13.7]} 51.
Rxh4 {[%clk 0:00:18.1]} 51... Kg5 {[%clk 0:00:14.4]} 52. Rg4+ {[%clk 0:00:18]}
52... Kh5 {[%clk 0:00:14.8]} 53. Rf4 {[%clk 0:00:16]} 53... Kh6 {[%clk
0:00:15.7]} 54. Rf5 {[%clk 0:00:16.4]} 54... Bc1 {[%clk 0:00:16.6]} 55. e5
{[%clk 0:00:16.7]} 55... Bb2 {[%clk 0:00:17.5]} 56. e6 {[%clk 0:00:17]} 56...
Kg6 {[%clk 0:00:17.5]} 57. Rf4 {[%clk 0:00:16.4]} 57... Bf6 {[%clk 0:00:17.2]}
58. Ra4 {[%clk 0:00:15.1]} 58... Be7 {[%clk 0:00:17.2]} 59. Kg4 {[%clk
0:00:14.1]} 59... Kf6 {[%clk 0:00:18.1]} 60. h4 {[%clk 0:00:14.1]} 60... Ke5
{[%clk 0:00:18.5]} 61. h5 {[%clk 0:00:14.7]} 61... Kf6 {[%clk 0:00:19.3]} 62. h6
{[%clk 0:00:15.1]} 62... Kg6 {[%clk 0:00:20.1]} 63. Ra7 {[%clk 0:00:14.2]} 63...
Bc5 {[%clk 0:00:20.2]} 64. e7 {[%clk 0:00:13.6]} 64... Bxa7 {[%clk 0:00:20.6]}
65. e8=Q+ {[%clk 0:00:12.6]} 65... Kxh6 {[%clk 0:00:21.5]} 66. Qh5+ {[%clk
0:00:11.1]} 66... Kg7 {[%clk 0:00:21.4]} 67. Qf7+ {[%clk 0:00:11.8]} 67... Kh6
{[%clk 0:00:22.3]} 68. Qf8+ {[%clk 0:00:10.3]} 68... Kg6 {[%clk 0:00:22.2]} 69.
Bb1# {[%clk 0:00:10.1]} 1-0